Cogmind - Beta 13 @@@ ROGUE MODE // 2024.06.16 @ 10:52:09 Player: Willzfaz Result: Destroyed by G-47 Trooper with Particle Gun Performance ------------- Evolutions (0) 0 Regions Visited (2) 400 Robots Destroyed (26) 130 Value Destroyed (434) 434 Prototype IDs (0) 0 Alien Tech Used (0) 0 Bonus (0) 0 TOTAL SCORE: 964 Bonus ------- None Cogmind --------- Core Integrity 0/250 Matter 233/300 Energy 125/125 System Corruption 3% Temperature Cool (58) Movement Core (100) Ox1 Location -10/Mines Parts ------- > --- POWER (1) -------- Light Ion Engine > --- PROPULSION (2) --- (None) > --- UTILITY (2) ------ Weight Redist. System Hardened Light Armor Plating > --- WEAPON (2) ------- Assault Rifle > --- INVENTORY (5) ---- Small Matter Pod (0) Visual Processing Unit Improved Targeting Computer ECM Suite Peak State ------------ > --- POWER ------------ Ion Engine > --- PROPULSION ------- Armored Wheel Armored Wheel > --- UTILITY ---------- Weight Redist. System Improved Targeting Computer > --- WEAPON ----------- Medium Laser Light EM Pulse Cannon > --- INVENTORY -------- Visual Processing Unit Improved Targeting Computer Hardened Light Armor Plating Hardened Light Armor Plating Light EM Pulse Cannon [Rating: 13] Favorites ----------- Power Ion Engine Engine Ion Engine Propulsion Armored Wheel Leg Aluminum Leg Wheel Armored Wheel Flight Unit Flight Unit Utility Weight Redist. System Device Weight Redist. System Processor Improved Targeting Computer Protection Hardened Light Armor Plating Weapon Medium Laser Energy Gun Medium Laser Energy Cannon Light EM Pulse Cannon Ballistic Gun Assault Rifle Special Melee Weapon Datajack Build | -11 -10 -10 ------- Run | Yrd Mat Min Slots Evolved . | . . . Power . | . . . Propulsion . | . . . Utility . | . . . Weapon . | . . . Parts Attached 31 | 8 21 2 Power 3 | 2 1 . Engine 3 | 2 1 . Core . | . . . Reactor . | . . . Propulsion 9 | 2 7 . Treads . | . . . Leg 2 | 2 . . Wheel 5 | . 5 . Hover . | . . . Flight 2 | . 2 . Utility 10 | 2 7 1 Device 3 | 2 1 . Storage . | . . . Processor 2 | . 2 . Hackware . | . . . Protection 5 | . 4 1 Artifact . | . . . Weapon 9 | 2 6 1 Energy Gun 4 | 2 2 . Energy Cannon 3 | . 3 . Ballistic Gun 1 | . . 1 Ballistic Cannon . | . . . Launcher . | . . . Special Weapon . | . . . Impact Weapon . | . . . Slashing Weapon . | . . . Piercing Weapon . | . . . Special Melee Weapon 1 | . 1 . Unidentified Prototypes . | . . . Parts Lost 7 | . 3 4 Power 1 | . 1 . Propulsion 3 | . 1 2 Utility . | . . . Weapon 3 | . 1 2 Highest Loss Streak 4 | . 2 4 To Critical Strikes 1 | . 1 . Average Slot Usage (%) 85 | . 90 56 Engine 12 | . 12 14 Leg 5 | . 5 . Wheel 18 | . 21 1 Device 9 | . 8 14 Processor 6 | . 7 . Protection 9 | . 8 14 Energy Gun 13 | . 15 . Energy Cannon 7 | . 9 . Ballistic Gun 1 | . . 10 Naked Turns . | . . . Heaviest Build 20 | 11 20 13 Greatest Support 30 | 20 30 28 Greatest Overweight (x) 1 | 1 1 1 Average Overweight (x) . | . . . Largest Inventory Capacity 5 | 5 5 5 Average Capacity 5 | 5 5 5 Most Carried 5 | 4 5 5 Average Carried 2 | . 3 3 Final Capacity 5 | 5 5 5 Final Carried 4 | . 3 4 Class Distribution -------------------- 100% | Mutant Dominant Class ---------------- Mutant | -10/Materials Mutant | -10/Mines Resources | -11 -10 -10 ----------- Run | Yrd Mat Min Matter Collected 428 | 185 243 . Remotely . | . . . Salvage Created 751 | 340 394 17 Parts 55 | 24 29 2 Haulers Intercepted . | . . . Recyclers Shooed . | . . . Parts Field Recycled . | . . . Retrieved Matter . | . . . Parts Self-Destructed . | . . . Prevented . | . . . Kills | -11 -10 -10 ------- Run | Yrd Mat Min Combat Hostiles Destroyed 8 | . 8 . Guns 3 | . 3 . Cannons 3 | . 3 . AOE 2 | . 2 . Classes Destroyed 7 | 3 4 . Worker 5 | 2 2 1 Builder 1 | . 1 . Tunneler 8 | 8 . . Recycler 1 | 1 . . Watcher 3 | . 3 . Swarmer 1 | . 1 . Grunt 7 | . 7 . Best Kill Streak 4 | 3 4 1 Combat Bots Only 2 | . 2 . Max Kills in Single Turn 3 | 2 3 1 Gunslinging . | . . . Exploded 1 | . 1 . Melee . | . . . Uniques/NPCs Destroyed . | . . . Combat | -11 -10 -10 -------- Run | Yrd Mat Min Hostile Shots Fired 123 | . 89 34 Missed 34 | . 28 6 Damage Taken 1097 | . 706 391 Core 254 | . 201 53 Absorbed by Shields . | . . . Regen/Repaired (Parts) 1 | . 1 . Core Remaining (%) 100 | 100 . . Volleys Fired 85 | 35 40 10 Largest 2 | 2 2 1 Hottest 115 | 90 115 20 Shots Fired 144 | 70 64 10 Gun 126 | 70 46 10 Cannon 18 | . 18 . Launcher . | . . . Special . | . . . Kinetic 10 | . . 10 Thermal 73 | 35 38 . Explosive . | . . . Electromagnetic 61 | 35 26 . Robot Hit Streak 8 | 8 5 3 Robot Miss Streak 4 | 4 4 1 Penetration Max . | . . . Secondary Targets 1 | . 1 . Max Gunslinging Chain 1 | . 1 . Shots Hit Robots 84 | 39 34 11 Core Hits 36 | 12 20 4 Critical Kills . | . . . Critical Parts Destroyed . | . . . Critical Strikes 6 | 4 2 . Burn 6 | 4 2 . Melee Attacks 5 | . . 5 Impact . | . . . Slashing . | . . . Piercing . | . . . Sneak Attacks . | . . . Combat Hostiles . | . . . Follow-up Attacks . | . . . Damage Inflicted 1838 | 608 1132 98 Guns 951 | 519 339 93 Cannons 275 | . 275 . Explosions 549 | 70 479 . Melee . | . . . Ramming 63 | 19 39 5 Kinetic 93 | . . 93 Thermal 1006 | 258 748 . Explosive . | . . . Electromagnetic 676 | 331 345 . Impact . | . . . Slashing . | . . . Piercing . | . . . Highest Corruption 3 | . 3 3 Average Corruption 3 | . 3 3 Corruption Purged . | . . . Corruption Blocked . | . . . Effects 6 | . 4 2 Message Errors 2 | . . 2 Heat Flow Errors 2 | . 2 . Parts Fused 1 | . 1 . Data Loss (minor) 1 | . 1 . Overload Shots . | . . . Overflow Damage 14 | 14 . . Projectiles . | . . . Explosions 14 | 14 . . Melee . | . . . Knockbacks . | . . . Impact . | . . . Kinetic . | . . . Secondary . | . . . Self-Inflicted Damage 80 | . 78 2 Shots 1 | . 1 . Rammed 14 | . 13 1 Targets Rammed 19 | 4 14 1 Kicked 5 | 4 1 . Crushed . | . . . Highest Temperature 369 | 360 369 49 Average Temperature 116 | 101 132 27 Received Heat Transfer 453 | . 219 234 Effects 4 | . 4 . Energy Bleed 2 | . 2 . Interference 2 | . 2 . Siege Activations . | . . . Robots Corrupted . | . . . Combat Hostiles . | . . . Parts Fried 2 | . 2 . Impact Corruptions . | . . . Robots Melted . | . . . Combat Hostiles . | . . . Parts Melted 3 | . 3 . Heat Transferred 2176 | 951 1225 . Parts Sabotaged . | . . . Parts Stolen . | . . . Parts Stripped . | . . . Power Chain Reactions 2 | 2 . . Alert | -11 -10 -10 ------- Run | Yrd Mat Min Peak Influence 221 | 55 221 43 Initial 35 | . 35 28 Average 66 | 24 85 24 Maximum Alert Level 1 | . 1 . Low Security (%) 99 | 100 98 100 Level 1 . | . 1 . Level 2 . | . . . Level 3 . | . . . Level 4 . | . . . Level 5 . | . . . High Security . | . . . Max Security . | . . . Squads Dispatched 1 | . 1 . Investigation . | . . . Extermination . | . . . Reinforcement 1 | . 1 . Assault . | . . . Garrison . | . . . Intercept . | . . . Searches Triggered . | . . . Construction Impeded . | . . . Haulers Reinforced . | . . . Active Scanning Responses . | . . . Cargo Convoy Interrupts . | . . . Stealth | -11 -10 -10 --------- Run | Yrd Mat Min Distress Signals . | . . . Communications Jammed . | . . . Distress Signals . | . . . Times Spotted 22 | . 18 4 Peak Tracking Total 3 | . 3 2 Tactical Retreats 2 | . 1 1 Traps | -11 -10 -10 ------- Run | Yrd Mat Min Traps Triggered . | . . . Indirectly . | . . . Trap Hack Attempts . | . . . Triggered . | . . . Disarmed . | . . . Reprogrammed . | . . . Reused . | . . . Traps Extracted . | . . . Installed . | . . . Triggered . | . . . Machines | -11 -10 -10 ---------- Run | Yrd Mat Min Machines Disabled 4 | . 4 . Max in Single Turn 2 | . 2 . Machines Repaired . | . . . Machines Dismantled . | . . . Machines Sabotaged . | . . . Overloaded Fab Kills . | . . . Hacking | -11 -10 -10 --------- Run | Yrd Mat Min Machines Accessed 7 | . 7 . Terminals 6 | . 6 . Fabricators . | . . . Repair Stations 1 | . 1 . Recycling Units . | . . . Scanalyzers . | . . . Garrison Access . | . . . Total Hacks 24 | . 24 . Successful 16 | . 16 . Failed 8 | . 8 . Catastrophic . | . . . Database Lockouts . | . . . Manual . | . . . Terminals 22 | . 22 . Fabricators . | . . . Repair Stations 2 | . 2 . Recycling Units . | . . . Scanalyzers . | . . . Garrison Access . | . . . Terminal Hacks 14 | . 14 . Record 9 | . 9 . Robot Analysis 1 | . 1 . Alert Level 1 | . 1 . Dispatch Records 1 | . 1 . Maintenance Status 1 | . 1 . Zone Layout 1 | . 1 . Fabricator Hacks . | . . . Repair Station Hacks 2 | . 2 . Scan Component 1 | . 1 . Repair 1 | . 1 . Recycling Unit Hacks . | . . . Scanalyzer . | . . . Garrison Access Hacks . | . . . Unauthorized Hacks . | . . . Terminals . | . . . Fabricators . | . . . Repair Stations . | . . . Recycling Units . | . . . Scanalyzers . | . . . Garrison Access . | . . . Data Cores Recovered . | . . . Used . | . . . Hacking Detections 7 | . 7 . Full Trace Events . | . . . Feedback Events . | . . . Feedback Blocked . | . . . Robot Schematics Acquired . | . . . Robots Built . | . . . Authchips . | . . . Time . | . . . Total Robot Build Rating . | . . . Part Schematics Acquired . | . . . Parts Built . | . . . Authchips . | . . . Time . | . . . Total Part Build Rating . | . . . Parts Repaired 1 | . 1 . Time 38 | . 38 . Parts Recycled . | . . . Recycled Matter . | . . . Retrieved Matter . | . . . Retrieved Components . | . . . Parts Scanalyzed . | . . . Part Schematics Acquired . | . . . Parts Damaged . | . . . Bothacking | -11 -10 -10 ------------ Run | Yrd Mat Min Used RIF Installer . | . . . Robots Hacked 1 | . . 1 Non-combat . | . . . Combat 1 | . . 1 Robot Hacks Applied 2 | . . 2 parse_system 2 | . . 2 Relay Couplers Released . | . . . Fabnet Peak Effective % . | . . . Robots Rewired . | . . . Allies Hacked . | . . . Hacks Repelled . | . . . Allies | -11 -10 -10 -------- Run | Yrd Mat Min Total Allies . | . . . Largest Group . | . . . Highest-Rated Group . | . . . Highest-Rated Ally . | . . . Total Orders . | . . . Ally Attacks . | . . . Total Damage . | . . . Kills . | . . . Allies Corrupted . | . . . Allies Melted . | . . . Intel | -11 -10 -10 ------- Run | Yrd Mat Min Robot Analysis Total 1 | . 1 . Derelict Logs Recovered 1 | . . 1 Drone Launches . | . . . Drone Recoveries . | . . . Exploration | -11 -10 -10 ------------- Run | Yrd Mat Min Turns Passed 1367 | 282 930 155 Spaces Moved 990 | 134 713 143 Core 154 | 17 . 137 Treads . | . . . Legs 247 | 117 130 . Wheels 587 | . 581 6 Hover . | . . . Flight 2 | . 2 . Fastest Speed 50 | 50 80 50 Average Speed 95 | 114 94 84 Slowest Speed 120 | 120 120 100 Overloaded Moves . | . . . Propulsion Burnouts . | . . . Robots Hopped . | . . . Cave-ins Triggered . | . . . Exploration Rate (%) 41 | 6 85 32 Regions Visited 2 Branch Regions 1 Pre-discovered Areas . | . . . Known Exits Taken . | . . . Unknown Exits Taken 2 | 1 1 . Scrap Searched 1 | . . 1 Spaces Dug . | . . . Terrain Destroyed 43 | 4 39 . Melee . | . . . Projectile . | . . . AOE 43 | 4 39 . Terrain Rammed . | . . . Walls Destroyed . | . . . Machines Disabled . | . . . Actions | -11 -10 -10 --------- Run | Yrd Mat Min Total 1262 | 191 906 165 Wait 83 | . 83 . Move 988 | 133 712 143 Hop . | . . . Pick Up 33 | 9 21 3 Fast Attach 1 | . 1 . Attach 13 | 7 5 1 Detach . | . . . Swap 17 | 1 15 1 Drop 18 | 2 15 1 Fire 85 | 35 40 10 Melee 5 | . . 5 Ram 14 | . 13 1 Kick 5 | 4 1 . Crush . | . . . Escape Stasis . | . . . Rewire . | . . . Trap . | . . . Miscellaneous . | . . . Route ------- -11/Scrapyard -10/Materials (discovered 4 exits: [*Mat x2] / [*Min x2]) -10/Mines History --------- Turn | Location | Event 19 | -11/Scrapyard | Discovered new exit (range 15) 283 | -11/Scrapyard | Entered Materials 312 | -10/Materials | Build established: Mutant 312 | -10/Materials | Discovered new exit (range 8) 399 | -10/Materials | Repaired Imp. Terrain Scanner? 443 | -10/Materials | Discovered new exit (range 7) 503 | -10/Materials | Discovered new exit (range 10) 1073 | -10/Materials | Core integrity fell below 50% 1078 | -10/Materials | Discovered new exit (range 11) 1079 | -10/Materials | Core integrity fell below 20% 1213 | -10/Materials | Entered Mines 1240 | -10/Mines | Met a Derelict bent on vengeance 1263 | -10/Mines | Lost 4 parts (2n2w) 1328 | -10/Mines | Learned Materials trap positions 1368 | -10/Mines | Destroyed by G-47 Trooper with Particle Gun Last Messages --------------- 01247_ Found Assault Rifle. 01247_ Found Sml. Matter Pod. 01247_ Found 24 Matter. 01248_ O6OI14Y2Y9M|VNM BJLJRPBO GX 01248_ Acquired Assault Rifle. 01249_ Acquired ECM Suite. 01253_ Dropped Hrd. Light Armor Plating. 01254_ Acquired Sml. Matter Pod. 01293_ K-01 Serf collects debris. 01308_ 4FF1PDSKJZNGKBYH=ZKGLQ|3VVAA1VH% 01328_ Acquired derelict log, extracted data. Data stored: Materials trap records. 01344_ Slammed into K-01 Serf. 01348_ K-01 Serf destroyed. 01352_ K-01 Serf collects debris. 01356_ Critical hit (Burn: +37). 01356_ K-01 Serf collects debris. 01362_ R-06 Scavenger collects Wheel. 01365_ K-01 Serf collects debris. 01366_ R-06 Scavenger collects Wheel. Map ----- +----------------------------------------------------+ | ????# #??????????????????????????????????????? | | ????# ## #??????????????????????????????????????? | | #???# ## #??????????????????????????????????????? | | #??# ## #?????????????? ???????????????????????? | | ### ######????????? ??????????????????????? | | ## [ #?????????# ??????????????????????? | | #%! #?????????# ??????????????????????? | | ####### #?????????? ###???????????????????? | | ##?????# #??????#### #???????????????????? | | #??????# #?????## ## #???????????????????? | | #??????# #????## #???????????????????? | | "" ##??????# #????# #???????????????????? | | "" ##???????# #????# #???????????????????? | | "" ##????????# ####?# ##??????????????????? | | #?????????# #??# ##?????????????????? | | #?????????# #??# ##????????????????? | | # #?????????### #?## """ #????????????????? | | # #???????????# ### """ ##???????????????? | | # #???????????# """ ##??????????????? | | # ###?????????# ## #??????????????? | | # #?????????######## #### #??????????????? | | #### #????????????????## ##### ###??????????????? | | ???# #?????????????????##### #????????????????? | | ???# #?????????????????????# ## #????????????????? | | ???# #??????????############ ## #### #???????????? | | ???# #??????????# @ gr## #???????????? | | ???# #?########## ######## g ######???????????? | | ???# #?# #??????# k #????????????????? | | ???# #?# ######## #??????### #???????????????? | | ???# #?# #??????# #????????## #???????????????? | | ???# #?# #??????# #?????????# #???????????????? | | ??## ### ##?????# #?????????# #???????????????? | | ??# ##????# #?????????# #??????????????? | | ??# ###### #?????????# #??????????????? | | ??## #?????????## ??????????????? | | ???## #######??????????## ###?????????????? | | ????# ##??????????????????###???????????????? | | ????# ##?????????????????????????????????????? | | ????## ##??????????????????????????????????????? | | ?????#####???????????????????????????????????????? | | ?????????????????????????????????????????????????? | | ?????????????????????????????????????????????????? | | ?????????????????????????????????????????????????? | | | | | | | | | | | | | | | +----------------------------------------------------+ Best States ------------- Heat Dissipation 25 Energy Generation 10 Energy Capacity 250 Matter Stores 300 Matter Capacity 300 Sight Range 16 Terrain Scan Range 16 Terrain Scan Density 10 Additional Mass Support 6 Armor Coverage 300 Evasion (%) 55 Targeting Accuracy 6 Item Schematics ----------------- None Robot Schematics ------------------ None Fabricated ------------ Nothing Alien Tech Used ----------------- None Achievements -------------- None Challenges ------------ None Game ------ Seed TerrainVisualSplitter Manual? 0 Play Time 00:20:02 Cumulative 1.2 hours Start 2024.06.16 @ 10:31:25 End 2024.06.16 @ 10:52:09 Sessions 1 Manual Loads 0 Difficulty Rogue Special Mode None Game No. 4 Rogue 4 Adventurer 0 Explorer 0 Win Type - Total 0 Types 0/0/0/0/0/0/0/0/0 Lore% 1 Gallery% 4 Achievement% 3 Wizard Run 0 Options --------- Layout 1 ASCII 0 Keyboard 0 Movement Arrows Keybinds 0 Fullscreen 1 Font 24/Smallcaps Map View 50x35 Zoom Use 0% Tactical HUD 1 Map Filters NONE Filters NONE Steam 1 RUN: 3a9b6112-7fc7-4fcc-af55-fbcfac31a645